Cogmind - Beta 13 @@@ ROGUE MODE // 2024.08.04 @ 14:44:50 Player: Khanable Result: Destroyed by L-31 Rogue with Katana Performance ------------- Evolutions (1) 500 Regions Visited (2) 400 Robots Destroyed (13) 65 Value Destroyed (456) 456 Prototype IDs (1) 20 Alien Tech Used (0) 0 Bonus (0) 0 TOTAL SCORE: 1441 Bonus ------- None Cogmind --------- Core Integrity 0/400 Matter 275/300 Energy 201/280 System Corruption 5% Temperature Cool (0) Movement Core (300) Ox5 Location -9/Materials Parts ------- > --- POWER (1) -------- Cooled Ion Engine > --- PROPULSION (4) --- (None) > --- UTILITY (2) ------ Small Storage Unit > --- WEAPON (2) ------- Light EM Pulse Cannon > --- INVENTORY (8) ---- Ion Engine Heat Sink High-capacity Storage Unit Light EM Pulse Cannon Assault Rifle Peak State ------------ > --- POWER ------------ Improved Ion Engine > --- PROPULSION ------- Flight Unit Flight Unit Flight Unit VTOL Module > --- UTILITY ---------- Small Storage Unit Sensor Array > --- WEAPON ----------- Light Cannon Light Cannon > --- INVENTORY -------- Flight Unit Flight Unit Flight Unit Heat Sink High-capacity Storage Unit Assault Rifle Assault Rifle [Rating: 11] Favorites ----------- Power Light Ion Engine Engine Light Ion Engine Propulsion Flight Unit Treads Light Treads Flight Unit Flight Unit Utility Small Storage Unit Device Sensor Array Storage Small Storage Unit Processor Terrain Scan Processor Weapon Light Cannon Energy Gun Small Laser Energy Cannon Light EM Pulse Cannon Ballistic Gun Assault Rifle Ballistic Cannon Light Cannon Build | -11 -10 -9 ------- Run | Yrd Mat Mat Slots Evolved 2 | . . 2 Power . | . . . Propulsion 2 | . . 2 Utility . | . . . Weapon . | . . . Parts Attached 34 | 6 9 19 Power 6 | 1 . 5 Engine 6 | 1 . 5 Core . | . . . Reactor . | . . . Propulsion 13 | 2 4 7 Treads 2 | 2 . . Leg . | . . . Wheel . | . . . Hover . | . . . Flight 11 | . 4 7 Utility 5 | 1 3 1 Device 1 | . 1 . Storage 3 | 1 2 . Processor 1 | . . 1 Hackware . | . . . Protection . | . . . Artifact . | . . . Weapon 10 | 2 2 6 Energy Gun 1 | 1 . . Energy Cannon 2 | . . 2 Ballistic Gun 4 | 1 . 3 Ballistic Cannon 3 | . 2 1 Launcher . | . . . Special Weapon . | . . . Impact Weapon . | . . . Slashing Weapon . | . . . Piercing Weapon . | . . . Special Melee Weapon . | . . . Unidentified Prototypes 1 | . . 1 Corrupted Parts 1 | . . 1 System Corruption 5 | . . 5 Parts Lost 14 | . . 14 Power 3 | . . 3 Propulsion 7 | . . 7 Utility 1 | . . 1 Weapon 3 | . . 3 Highest Loss Streak 10 | . . 10 To Critical Strikes 1 | . . 1 Average Slot Usage (%) 81 | . 97 69 Engine 11 | . 14 10 Treads 5 | . 12 . Flight 23 | . 15 28 Device 7 | . 12 3 Storage 12 | . 14 11 Energy Cannon 3 | . . 5 Ballistic Gun 7 | . 14 3 Ballistic Cannon 9 | . 11 7 Naked Turns . | . . . Heaviest Build 21 | 11 14 21 Greatest Support 40 | 40 40 16 Greatest Overweight (x) 5 | . 3 5 Average Overweight (x) . | . . . Largest Inventory Capacity 20 | 8 20 8 Average Capacity 7 | 6 8 8 Most Carried 8 | 2 8 7 Average Carried 5 | 1 5 4 Final Capacity 8 | 8 8 8 Final Carried 8 | 2 8 5 Class Distribution -------------------- 95% | Mutant 4% | Sprinter Dominant Class ---------------- Mutant | -10/Materials Mutant | -9/Materials Resources | -11 -10 -9 ----------- Run | Yrd Mat Mat Matter Collected 819 | 231 111 477 Remotely . | . . . Salvage Created 528 | 31 106 391 Parts 29 | . 7 22 Haulers Intercepted . | . . . Recyclers Shooed 2 | . 2 . Parts Field Recycled . | . . . Retrieved Matter . | . . . Parts Self-Destructed . | . . . Prevented . | . . . Kills | -11 -10 -9 ------- Run | Yrd Mat Mat Combat Hostiles Destroyed 11 | . 3 8 Guns 7 | . 2 5 Cannons 4 | . 1 3 Classes Destroyed 3 | 1 1 1 Recycler 2 | 1 . 1 Grunt 7 | . 3 4 Sentry 4 | . . 4 Best Kill Streak 2 | 1 2 2 Combat Bots Only 2 | . 2 2 Max Kills in Single Turn 1 | 1 1 1 Gunslinging . | . . . Exploded . | . . . Melee . | . . . Uniques/NPCs Destroyed . | . . . Combat | -11 -10 -9 -------- Run | Yrd Mat Mat Hostile Shots Fired 136 | . 17 119 Missed 33 | . 4 29 Damage Taken 1433 | . 150 1283 Core 421 | . 21 400 Absorbed by Shields . | . . . Regen/Repaired (Parts) 14 | . . 14 Core Remaining (%) 95 | 100 91 . Volleys Fired 70 | . 14 56 Largest 2 | . 2 2 Hottest 112 | . 55 112 Shots Fired 112 | . 28 84 Gun 52 | . 14 38 Cannon 60 | . 14 46 Launcher . | . . . Special . | . . . Kinetic 105 | . 28 77 Thermal . | . . . Explosive . | . . . Electromagnetic 7 | . . 7 Robot Hit Streak 15 | . 6 15 Robot Miss Streak 4 | . 4 2 Penetration Max . | . . . Secondary Targets . | . . . Shots Hit Robots 70 | . 15 55 Core Hits 24 | . 7 17 Critical Kills . | . . . Critical Parts Destroyed . | . . . Critical Strikes 2 | . . 2 Blast 2 | . . 2 Melee Attacks . | . . . Impact . | . . . Slashing . | . . . Piercing . | . . . Sneak Attacks . | . . . Combat Hostiles . | . . . Follow-up Attacks . | . . . Damage Inflicted 1042 | 11 217 814 Guns 455 | . 129 326 Cannons 574 | . 86 488 Explosions . | . . . Melee . | . . . Ramming 13 | 11 2 . Kinetic 905 | . 215 690 Thermal . | . . . Explosive . | . . . Electromagnetic 124 | . . 124 Impact . | . . . Slashing . | . . . Piercing . | . . . Highest Corruption 5 | . . 5 Average Corruption 5 | . . 5 Corruption Purged . | . . . Corruption Blocked . | . . . Effects 8 | . . 8 Message Errors 2 | . . 2 Matter Fused 3 | . . 3 Heat Flow Errors 1 | . . 1 Data Loss (minor) 1 | . . 1 Data Loss (major) 1 | . . 1 Overload Shots . | . . . Overflow Damage . | . . . Projectiles . | . . . Explosions . | . . . Melee . | . . . Knockbacks 5 | . 2 3 Impact . | . . . Kinetic 5 | . 2 3 Secondary . | . . . Self-Inflicted Damage 1 | . 1 . Shots . | . . . Rammed 5 | 2 3 . Targets Rammed 6 | 3 3 . Kicked . | . . . Crushed 1 | 1 . . Highest Temperature 270 | . 78 270 Average Temperature 46 | . 45 46 Received Heat Transfer 633 | . 84 549 Effects 1 | . . 1 Interference 1 | . . 1 Siege Activations . | . . . Robots Corrupted . | . . . Combat Hostiles . | . . . Parts Fried 1 | . . 1 Impact Corruptions . | . . . Robots Melted . | . . . Combat Hostiles . | . . . Parts Melted . | . . . Heat Transferred . | . . . Parts Sabotaged . | . . . Parts Stolen . | . . . Parts Stripped . | . . . Power Chain Reactions . | . . . Alert | -11 -10 -9 ------- Run | Yrd Mat Mat Peak Influence 173 | 5 83 173 Initial 8 | . 3 8 Average 46 | . 22 69 Maximum Alert Level . | . . . Low Security (%) 100 | 100 100 100 Level 1 . | . . . Level 2 . | . . . Level 3 . | . . . Level 4 . | . . . Level 5 . | . . . High Security . | . . . Max Security . | . . . Squads Dispatched 3 | . 1 2 Investigation . | . . . Extermination . | . . . Reinforcement 3 | . 1 2 Assault . | . . . Garrison . | . . . Intercept . | . . . Searches Triggered . | . . . Construction Impeded . | . . . Haulers Reinforced . | . . . Active Scanning Responses . | . . . Cargo Convoy Interrupts . | . . . Stealth | -11 -10 -9 --------- Run | Yrd Mat Mat Distress Signals . | . . . Communications Jammed . | . . . Distress Signals . | . . . Times Spotted 24 | . 6 18 Peak Tracking Total 5 | . 3 5 Tactical Retreats 1 | . . 1 Traps | -11 -10 -9 ------- Run | Yrd Mat Mat Traps Triggered 2 | . 2 . Indirectly . | . . . Trap Hack Attempts . | . . . Triggered . | . . . Disarmed . | . . . Reprogrammed . | . . . Reused . | . . . Traps Extracted . | . . . Installed . | . . . Triggered . | . . . Machines | -11 -10 -9 ---------- Run | Yrd Mat Mat Machines Disabled . | . . . Max in Single Turn . | . . . Machines Repaired . | . . . Machines Dismantled . | . . . Machines Sabotaged . | . . . Overloaded Fab Kills . | . . . Hacking | -11 -10 -9 --------- Run | Yrd Mat Mat Machines Accessed 7 | . 3 4 Terminals 5 | . 3 2 Fabricators . | . . . Repair Stations 1 | . . 1 Recycling Units 1 | . . 1 Scanalyzers . | . . . Garrison Access . | . . . Total Hacks 17 | . 8 9 Successful 8 | . 2 6 Failed 9 | . 6 3 Catastrophic . | . . . Database Lockouts . | . . . Manual . | . . . Terminals 13 | . 8 5 Fabricators . | . . . Repair Stations 3 | . . 3 Recycling Units 1 | . . 1 Scanalyzers . | . . . Garrison Access . | . . . Terminal Hacks 5 | . 2 3 Level Access Points 1 | . . 1 Locate Traps 1 | . 1 . Transport Status 1 | . . 1 Hauler Manifests 1 | . 1 . Zone Layout 1 | . . 1 Fabricator Hacks . | . . . Repair Station Hacks 2 | . . 2 Scan Component 1 | . . 1 Repair 1 | . . 1 Recycling Unit Hacks 1 | . . 1 Retrieve Components 1 | . . 1 Scanalyzer . | . . . Garrison Access Hacks . | . . . Unauthorized Hacks . | . . . Terminals . | . . . Fabricators . | . . . Repair Stations . | . . . Recycling Units . | . . . Scanalyzers . | . . . Garrison Access . | . . . Data Cores Recovered . | . . . Used . | . . . Hacking Detections 3 | . 2 1 Full Trace Events . | . . . Feedback Events . | . . . Feedback Blocked . | . . . Robot Schematics Acquired . | . . . Robots Built . | . . . Authchips . | . . . Time . | . . . Total Robot Build Rating . | . . . Part Schematics Acquired . | . . . Parts Built . | . . . Authchips . | . . . Time . | . . . Total Part Build Rating . | . . . Parts Repaired 1 | . . 1 Time 26 | . . 26 Parts Recycled . | . . . Recycled Matter . | . . . Retrieved Matter . | . . . Retrieved Components 9 | . . 9 Parts Scanalyzed . | . . . Part Schematics Acquired . | . . . Parts Damaged . | . . . Bothacking | -11 -10 -9 ------------ Run | Yrd Mat Mat Used RIF Installer . | . . . Robots Hacked . | . . . Non-combat . | . . . Combat . | . . . Robot Hacks Applied . | . . . Relay Couplers Released . | . . . Fabnet Peak Effective % . | . . . Robots Rewired . | . . . Allies Hacked . | . . . Hacks Repelled . | . . . Allies | -11 -10 -9 -------- Run | Yrd Mat Mat Total Allies . | . . . Largest Group . | . . . Highest-Rated Group . | . . . Highest-Rated Ally . | . . . Total Orders . | . . . Ally Attacks . | . . . Total Damage . | . . . Kills . | . . . Allies Corrupted . | . . . Allies Melted . | . . . Intel | -11 -10 -9 ------- Run | Yrd Mat Mat Robot Analysis Total . | . . . Derelict Logs Recovered . | . . . Drone Launches . | . . . Drone Recoveries . | . . . Exploration | -11 -10 -9 ------------- Run | Yrd Mat Mat Turns Passed 1370 | 101 521 748 Spaces Moved 875 | 57 282 536 Core 6 | 4 . 2 Treads 147 | 53 94 . Legs . | . . . Wheels . | . . . Hover . | . . . Flight 722 | . 188 534 Fastest Speed 29 | 50 117 29 Average Speed 114 | 152 132 101 Slowest Speed 440 | 160 280 440 Overloaded Moves . | . . . Propulsion Burnouts . | . . . Robots Hopped . | . . . Cave-ins Triggered . | . . . Exploration Rate (%) 20 | 4 26 31 Regions Visited 2 Branch Regions . Pre-discovered Areas . | . . . Known Exits Taken . | . . . Unknown Exits Taken 2 | 1 1 . Scrap Searched . | . . . Spaces Dug . | . . . Terrain Destroyed . | . . . Melee . | . . . Projectile . | . . . AOE . | . . . Terrain Rammed . | . . . Walls Destroyed . | . . . Machines Disabled . | . . . Actions | -11 -10 -9 --------- Run | Yrd Mat Mat Total 1125 | 67 402 656 Wait 109 | . 72 37 Move 874 | 57 281 536 Hop . | . . . Pick Up 15 | 2 12 1 Fast Attach 22 | 6 8 8 Attach 9 | . . 9 Detach 9 | . 3 6 Swap 3 | . 1 2 Drop 9 | . 8 1 Fire 70 | . 14 56 Melee . | . . . Ram 2 | . 2 . Kick . | . . . Crush 3 | 2 1 . Escape Stasis . | . . . Rewire . | . . . Trap . | . . . Miscellaneous . | . . . Route ------- -11/Scrapyard -10/Materials -9/Materials (discovered 3 exits: *Mat x3) History --------- Turn | Location | Event 14 | -11/Scrapyard | Discovered new exit (range 15) 102 | -11/Scrapyard | Entered Materials 316 | -10/Materials | Build established: Mutant 610 | -10/Materials | Discovered new exit (range 3) 623 | -10/Materials | Entered another Materials area 623 | -9/Materials | Evolved 2 slots: Propulsion x2 743 | -9/Materials | Repaired Flight Unit 944 | -9/Materials | Core integrity fell below 50% 966 | -9/Materials | Lost 10 parts (1p5n1u3w) 1019 | -9/Materials | Discovered new exit (range 8) 1051 | -9/Materials | Identified exit to Materials 1368 | -9/Materials | Core integrity fell below 20% 1371 | -9/Materials | Destroyed by L-31 Rogue with Katana Last Messages --------------- System corrupted: Matter fused (-6). Acquired 4 matter. System corrupted: Matter fused (-5). Acquired 7 matter. O-16 Technician: "IFF HANDSHAKE FAILED. SECURING TERMINAL." ALERT: Hostiles spotted, dispatching reinforcements to Terminal M007. System corrupted: Matter fused (-10). Lgt. Ion Engine destroyed. 0PJVCN=#TN0=AXW34#X Map ----- +----------------------------------------------------+ | ?????????=[] ????????????????????????????????? | | ??????????[ ????????????????????????????????? | | ?????????? ????????????????????????????????? | | ??????????? #????????????????????????????????? | | ???????? #????????????????????????????????? | | ???????? ? #????????????????????????????????? | | ???????? ? +????????????????????????????????? | | ???????? ?? ?????????????????????????????????? | | ???????? ?? ?????????????????????????????????? | | ???????? ??# #?????????????????????????????????? | | ???????? ??# #?????????????????????????????????? | | ???????? ??# #?????????????????????????????????? | | ???????? ??# #?????????????????????????????????? | | ???????? ??# ###########+##????????????????????? | | ????????# #??# ???????????????????? | | ####????# #??# ???????????????????? | | #????# #??# """ ""????????????????????? | | #????# #??# ##### """????????????????????????? | | #????#/####/####?? """????????????????????????? | | #????# #??? ????????????????????????? | | [ #????# #????? ????????????????????????? | | [ #????# #?????? ??????????????????????? | | ##???# #??????????????????????????????? | | #???# #??????????????????????????????? | | ##???# ##+#####+####??????????????????? | | ####????# ## w@ #??????????????????? | | #?????# ## l #??????????????????? | | #?????#####+###### """ #??????????????????? | | #????????# + Y g """ #??????????????????? | | #????????# ##### ! ! """ #??????????????????? | | #????????# #???# !*! #??????????????????? | | ##????????# #???# *! "T" #??????????????????? | | #?????????# #???############??????????????????? | | #?????????# #??? ##???????????????????????? | | #?????????# #???? ????????????????????????? | | #?????????# #???? ?????? ???????????????? | | #?????????# #???? ??????? ??????????????? | | #?????????# #???? ???????? #??????????????? | | #?????????# #????# #???????# #??????????????? | | #?????????# ######+###?????# #??????????????? | | #?????????# # #?????# #??????????????? | | #?????????# # """ #?????# #??????????????? | | #?????????# # """ #?????# #??????????????? | | #?????????# # """ #?????# #??????????????? | | #??"" # %# #?????# #??????????????? | | # """ + + #?????# #??????????????? | | # # # #?????# #??????????????? | | # # ########+####### #??###+###?????? | | ########### #????# # #### #?????? | | #????# # ##????? | +----------------------------------------------------+ Best States ------------- Heat Dissipation 28 Energy Generation 14 Energy Capacity 280 Matter Stores 300 Matter Capacity 300 Sight Range 16 Robot Scan Range 14 Terrain Scan Density 10 Evasion (%) 64 Recoil Reduction 2 Item Schematics ----------------- None Robot Schematics ------------------ None Fabricated ------------ Nothing Alien Tech Used ----------------- None Achievements -------------- None Challenges ------------ None Game ------ Seed HelicalUtilityGreatsword Manual? 0 Play Time 00:25:50 Cumulative 7.6 hours Start 2024.08.04 @ 14:16:09 End 2024.08.04 @ 14:44:50 Sessions 1 Manual Loads 0 Difficulty Rogue Special Mode None Game No. 8 Rogue 8 Adventurer 0 Explorer 0 Win Type - Total 0 Types 0/0/0/0/0/0/0/0/0 Lore% 4 Gallery% 12 Achievement% 12 Wizard Run 0 Options --------- Layout 1 ASCII 0 Keyboard 1 Movement Arrows Keybinds 0 Fullscreen 1 Font 24/Smallcaps Map View 50x35 Zoom Use 0% Tactical HUD 0 Map Filters NONE Filters NONE Steam 1 RUN: 3cc75c41-6080-404a-a134-749b88756aa9